Cogmind - Beta 15 @@@ ROGUE MODE // 2025.05.26 @ 13:01:28 Player: winnking222 Result: Destroyed by S-10 Pest with Light Assault Rifle Performance ------------- Evolutions (0) 0 Regions Visited (3) 600 Robots Destroyed (23) 115 Value Destroyed (521) 521 Prototype IDs (12) 240 Alien Tech Used (0) 0 Bonus (0) 0 TOTAL SCORE: 1476 Bonus ------- None Cogmind --------- Core Integrity 0/250 Matter 260/300 Energy 98/100 System Corruption 0% Temperature Cool (0) Movement Core (50) Location -10/Subcaves Parts ------- > --- POWER (1) -------- (None) > --- PROPULSION (2) --- (None) > --- UTILITY (2) ------ Experimental Sensor Array > --- WEAPON (2) ------- (None) > --- INVENTORY (5) ---- Compact Wheel Medium Matter Pod (100) Power Bank Light EM Pulse Cannon Shrapnel Trap Peak State ------------ > --- POWER ------------ Ion Engine > --- PROPULSION ------- Light Treads Light Treads > --- UTILITY ---------- Small Storage Unit Experimental Sensor Array > --- WEAPON ----------- Light EM Pulse Cannon Light EM Pulse Cannon > --- INVENTORY -------- Ion Engine Compact Wheel Medium Matter Pod Seismic Detector Particle Gun Light EM Pulse Cannon Light EM Pulse Cannon [Rating: 18] Favorites ----------- Power Ion Engine Engine Ion Engine Propulsion Light Treads Treads Light Treads Leg Aluminum Leg Utility Small Storage Unit Device Seismic Detector Storage Small Storage Unit Weapon Light EM Pulse Cannon Energy Gun Particle Gun Energy Cannon Light EM Pulse Cannon Ballistic Gun Light Assault Rifle Build | -11 -10 -10 -10 ------- Run | Yrd Mat Min Sub Slots Evolved . | . . . . Power . | . . . . Propulsion . | . . . . Utility . | . . . . Weapon . | . . . . Parts Attached 17 | 6 7 1 3 Power 3 | 1 1 . 1 Engine 3 | 1 1 . 1 Core . | . . . . Reactor . | . . . . Propulsion 4 | 2 2 . . Treads 2 | . 2 . . Leg 2 | 2 . . . Wheel . | . . . . Hover . | . . . . Flight . | . . . . Utility 3 | 1 1 1 . Device 2 | . 1 1 . Storage 1 | 1 . . . Processor . | . . . . Hackware . | . . . . Protection . | . . . . Artifact . | . . . . Weapon 7 | 2 3 . 2 Energy Gun 1 | . 1 . . Energy Cannon 4 | . 2 . 2 Ballistic Gun 2 | 2 . . . Ballistic Cannon . | . . . . Launcher . | . . . . Special Weapon . | . . . . Impact Weapon . | . . . . Slashing Weapon . | . . . . Piercing Weapon . | . . . . Special Melee Weapon . | . . . . Unidentified Prototypes 1 | . . 1 . Parts Lost 8 | . 3 . 5 Power 1 | . . . 1 Propulsion 3 | . 1 . 2 Utility . | . . . . Weapon 4 | . 2 . 2 Highest Loss Streak 5 | . 2 . 5 To Critical Strikes . | . . . . Average Backups 4 | 3 4 6 5 Power . | . . 1 . Propulsion 1 | 2 2 1 1 Utility 1 | . 1 1 2 Weapon 1 | . . 3 1 Tool/Special . | . . . . Unused Backups 3 | . . . 3 Power . | . . . . Propulsion 1 | . . . 1 Utility 2 | . . . 2 Weapon . | . . . . Tool/Special . | . . . . Average Slot Usage (%) 83 | . 94 100 44 Engine 12 | . 14 14 6 Treads 14 | . 13 28 5 Leg 7 | . 14 . . Device 12 | . 10 14 14 Storage 12 | . 14 14 7 Energy Gun 2 | . 5 . . Energy Cannon 9 | . 2 28 10 Ballistic Gun 10 | . 19 . . Peak Build Rating 18 | 6 10 18 18 Average Rating 8 | 5 7 9 12 On Entrance 8 | . 6 9 18 Naked Turns . | . . . . Heaviest Build 19 | 13 19 19 19 Greatest Support 40 | 20 40 40 40 Greatest Overweight (x) 4 | 3 . . 4 Average Overweight (x) . | . . . . Largest Inventory Capacity 8 | 8 8 8 8 Average Capacity 7 | 7 8 8 6 Most Carried 7 | 5 7 7 7 Average Carried 4 | 3 4 6 5 Final Capacity 8 | 8 8 8 5 Final Carried 7 | 4 6 7 5 Class Distribution -------------------- 100% | Mutant Dominant Class ---------------- Mutant | -10/Materials Mutant | -10/Mines Mutant | -10/Subcaves Resources | -11 -10 -10 -10 ----------- Run | Yrd Mat Min Sub Matter Collected 693 | 300 378 . 15 Remotely . | . . . . Salvage Created 774 | 124 498 55 97 Parts 46 | 10 29 3 4 Haulers Intercepted . | . . . . Recyclers Shooed . | . . . . Parts Field Recycled . | . . . . Retrieved Matter . | . . . . Parts Self-Destructed 4 | . . . 4 Prevented . | . . . . Kills | -11 -10 -10 -10 ------- Run | Yrd Mat Min Sub Combat Hostiles Destroyed 17 | . 12 3 2 Guns 12 | . 12 . . Cannons 3 | . . 3 . Classes Destroyed 6 | 2 3 . 1 Tunneler 3 | 3 . . . Recycler 2 | 1 1 . . Watcher 1 | . 1 . . Swarmer 6 | . 3 3 . Grunt 9 | . 9 . . Subdweller 2 | . . . 2 Best Kill Streak 3 | 3 3 3 1 Combat Bots Only 3 | . 3 3 1 Max Kills in Single Turn 2 | 1 1 2 1 Gunslinging . | . . . . Exploded . | . . . . Melee . | . . . . Uniques/NPCs Destroyed . | . . . . Combat | -11 -10 -10 -10 -------- Run | Yrd Mat Min Sub Hostile Shots Fired 131 | . 80 14 37 Missed 35 | . 23 1 11 Hits 96 | . 57 13 26 Projectile 96 | . 57 13 26 Critical Strikes 1 | . . . 1 Damage Taken 1343 | . 671 114 558 Core 257 | . 136 . 121 Absorbed by Shields . | . . . . Core Remaining (%) 100 | 100 . . . Volleys Fired 100 | 10 62 7 21 Largest 2 | 2 2 2 2 Hottest 112 | 40 85 112 112 Shots Fired 178 | 20 122 11 25 Gun 149 | 20 122 . 7 Cannon 29 | . . 11 18 Launcher . | . . . . Special . | . . . . Kinetic 135 | 20 115 . . Thermal 14 | . 7 . 7 Explosive . | . . . . Electromagnetic 29 | . . 11 18 Robot Hit Streak 11 | 6 11 4 9 Robot Miss Streak 5 | 1 5 1 1 Penetration Max . | . . . . Secondary Targets 1 | . 1 . . Max Gunslinging Chain 1 | . 1 . . Shots Hit Robots 112 | 15 79 7 11 Core Hits 40 | 5 30 3 2 Critical Kills . | . . . . Critical Parts Destroyed . | . . . . Critical Strikes 1 | . . . 1 Corrupt 1 | . . . 1 Melee Attacks . | . . . . Impact . | . . . . Slashing . | . . . . Piercing . | . . . . Sneak Attacks . | . . . . Combat Hostiles . | . . . . Follow-up Attacks . | . . . . Damage Inflicted 1377 | 161 822 187 207 Guns 983 | 161 822 . . Cannons 360 | . . 153 207 Explosions 32 | . . 32 . Melee . | . . . . Ramming 2 | . . 2 . Kinetic 890 | 161 729 . . Thermal 125 | . 93 32 . Explosive . | . . . . Electromagnetic 360 | . . 153 207 Impact . | . . . . Slashing . | . . . . Piercing . | . . . . Highest Corruption . | . . . . Average Corruption . | . . . . Corruption Purged . | . . . . Corruption Blocked . | . . . . Overload Shots . | . . . . Overflow Damage . | . . . . Projectiles . | . . . . Explosions . | . . . . Melee . | . . . . Knockbacks . | . . . . Impact . | . . . . Kinetic . | . . . . Secondary . | . . . . Self-Inflicted Damage 18 | . . 18 . Shots 1 | . . 1 . Rammed 1 | . . 1 . Targets Rammed 1 | . . 1 . Kicked . | . . . . Crushed . | . . . . Highest Temperature 272 | . 200 204 272 Average Temperature 82 | . 50 122 141 Received Heat Transfer 635 | . 324 . 311 Siege Activations . | . . . . Martial Activations . | . . . . Shielding Activations . | . . . . Robots Disrupted . | . . . . Combat Hostiles . | . . . . Robots Corrupted 2 | . . . 2 Combat Hostiles 2 | . . . 2 Parts Fried 3 | . . . 3 Impact Corruptions . | . . . . Robots Melted . | . . . . Combat Hostiles . | . . . . Parts Melted 1 | . 1 . . Heat Transferred 272 | . 222 50 . Parts Sabotaged . | . . . . Parts Stolen . | . . . . Parts Stripped . | . . . . Power Chain Reactions 1 | . . 1 . Alert | -11 -10 -10 -10 ------- Run | Yrd Mat Min Sub Maximum Alert Level . | . . . . Low Security (%) 100 | 100 100 100 . Level 1 . | . . . . Level 2 . | . . . . Level 3 . | . . . . Level 4 . | . . . . Level 5 . | . . . . High Security . | . . . . Max Security . | . . . . Peak Influence 80 | 10 80 75 . Initial . | . . . . Average 22 | 1 27 16 . Influence Increases 447 | 20 322 75 30 Destroy 0b10 Robot/C 300 | . 240 60 . Destroy 0b10 Robot/NC 30 | 20 10 . . Destroy Leader 52 | . 42 10 . Destroy Structure 5 | . . 5 . Partial Spotted 15 | . 15 . . Lose Combat Pursuer 45 | . 15 . 30 Influence Decreases 417 | 20 322 75 . Time Decay 387 | 20 292 75 . Lost Part 30 | . 30 . . Squads Dispatched 2 | . 2 . . Investigation . | . . . . Extermination . | . . . . Reinforcement 2 | . 2 . . Assault . | . . . . Garrison . | . . . . Intercept . | . . . . Searches Triggered . | . . . . Construction Impeded . | . . . . Haulers Reinforced . | . . . . Active Scanning Responses . | . . . . Cargo Convoy Interrupts . | . . . . Stealth | -11 -10 -10 -10 --------- Run | Yrd Mat Min Sub Distress Signals 2 | . 2 . . Communications Jammed . | . . . . Distress Signals . | . . . . Times Spotted 37 | . 27 3 7 Peak Tracking Total 6 | . 5 3 6 Tactical Retreats 2 | . 1 . 1 Traps | -11 -10 -10 -10 ------- Run | Yrd Mat Min Sub Traps Triggered . | . . . . Indirectly . | . . . . Trap Hack Attempts . | . . . . Triggered . | . . . . Disarmed . | . . . . Reprogrammed . | . . . . Reused . | . . . . Traps Extracted . | . . . . Installed . | . . . . Triggered . | . . . . Most Traps Carried 1 | . . . 1 Machines | -11 -10 -10 -10 ---------- Run | Yrd Mat Min Sub Machines Disabled 1 | . . . 1 Max in Single Turn 1 | . . . 1 Machines Repaired . | . . . . Machines Dismantled . | . . . . Machines Sabotaged . | . . . . Overloaded Fab Kills . | . . . . Hacking | -11 -10 -10 -10 --------- Run | Yrd Mat Min Sub Machines Accessed 2 | . 1 . 1 Terminals 1 | . 1 . . Fabricators . | . . . . Repair Stations . | . . . . Recycling Units . | . . . . Scanalyzers . | . . . . Garrison Access . | . . . . Total Hacks 2 | . 1 . 1 Successful 1 | . . . 1 Failed 1 | . 1 . . Catastrophic 1 | . 1 . . Database Lockouts . | . . . . Manual . | . . . . Terminals 1 | . 1 . . Fabricators . | . . . . Repair Stations . | . . . . Recycling Units . | . . . . Scanalyzers . | . . . . Garrison Access . | . . . . Terminal Hacks 1 | . . . 1 Proto ID Catalog 1 | . . . 1 Fabricator Hacks . | . . . . Repair Station Hacks . | . . . . Recycling Unit Hacks . | . . . . Scanalyzer . | . . . . Garrison Access Hacks . | . . . . Unauthorized Hacks . | . . . . Terminals . | . . . . Fabricators . | . . . . Repair Stations . | . . . . Recycling Units . | . . . . Scanalyzers . | . . . . Garrison Access . | . . . . Data Cores Recovered . | . . . . Used . | . . . . Hacking Detections 1 | . 1 . . Full Trace Events . | . . . . Feedback Events . | . . . . Feedback Blocked . | . . . . Robot Schematics Acquired . | . . . . Robots Built . | . . . . Authchips . | . . . . Time . | . . . . Total Robot Build Rating . | . . . . Part Schematics Acquired . | . . . . Parts Built . | . . . . Authchips . | . . . . Time . | . . . . Total Part Build Rating . | . . . . Parts Repaired . | . . . . Time . | . . . . Parts Recycled . | . . . . Recycled Matter . | . . . . Retrieved Matter . | . . . . Retrieved Components . | . . . . Parts Scanalyzed . | . . . . Part Schematics Acquired . | . . . . Parts Damaged . | . . . . Bothacking | -11 -10 -10 -10 ------------ Run | Yrd Mat Min Sub Used RIF Installer . | . . . . Robots Hacked . | . . . . Non-combat . | . . . . Combat . | . . . . Robot Hacks Applied . | . . . . Relay Couplers Released . | . . . . Fabnet Peak Effective % . | . . . . Robots Rewired . | . . . . Allies Hacked . | . . . . Hacks Repelled . | . . . . Allies | -11 -10 -10 -10 -------- Run | Yrd Mat Min Sub Total Allies . | . . . . Largest Group . | . . . . Highest-Rated Group . | . . . . Highest-Rated Ally . | . . . . Total Orders . | . . . . Ally Attacks . | . . . . Total Damage . | . . . . Kills . | . . . . Allies Corrupted . | . . . . Allies Melted . | . . . . Intel | -11 -10 -10 -10 ------- Run | Yrd Mat Min Sub Active Infowar (turns) 1314 | . 670 355 289 Sensors 294 | . . 5 289 Seismic 1020 | . 670 350 . Robot Analysis Total . | . . . . Derelict Logs Recovered . | . . . . Drone Launches . | . . . . Drone Recoveries . | . . . . Exploration | -11 -10 -10 -10 ------------- Run | Yrd Mat Min Sub Turns Passed 1796 | 127 900 355 414 Spaces Moved 1030 | 82 432 185 331 Core 326 | 22 . . 304 Treads 389 | . 177 185 27 Legs 315 | 60 255 . . Wheels . | . . . . Hover . | . . . . Flight . | . . . . Fastest Speed 50 | 50 120 160 50 Average Speed 121 | 103 136 160 85 Slowest Speed 250 | 200 160 160 250 Overloaded Moves . | . . . . Propulsion Burnouts . | . . . . Robots Hopped . | . . . . Potential Cave-ins . | . . . . Cave-ins Triggered . | . . . . Exploration Rate (%) 33 | 5 78 29 22 Regions Visited 3 Branch Regions 2 Pre-discovered Areas 1 | . . . 1 Known Exits Taken . | . . . . Unknown Exits Taken 3 | 1 1 1 . Scrap Searched . | . . . . Spaces Dug . | . . . . Terrain Destroyed 5 | . . 5 . Melee . | . . . . Projectile . | . . . . AOE 5 | . . 5 . Terrain Rammed . | . . . . Walls Destroyed . | . . . . Machines Disabled . | . . . . Actions | -11 -10 -10 -10 --------- Run | Yrd Mat Min Sub Total 1410 | 105 632 232 441 Wait 235 | . 124 38 73 Move 1027 | 81 431 184 331 Hop . | . . . . Pick Up 18 | 8 7 1 2 Fast Attach 3 | 2 . . 1 Attach 12 | 4 4 . 4 Detach 2 | . . . 2 Swap 5 | . 3 1 1 Drop 7 | . 1 . 6 Fire 100 | 10 62 7 21 Melee . | . . . . Ram . | . . . . Kick . | . . . . Crush 1 | . . 1 . Escape Stasis . | . . . . Rewire . | . . . . Trap . | . . . . Miscellaneous . | . . . . Route ------- -11/Scrapyard -10/Materials (discovered 4 exits: [*Mat x2] / [*Min x2]) -10/Mines (discovered 2 exits: [*Mat] / *Sub) -10/Subcaves History --------- Turn | Location | Event 9 | -11/Scrapyard | Discovered new exit (range 14) 128 | -11/Scrapyard | Entered Materials 210 | -10/Materials | Discovered new exit (range 9) 300 | -10/Materials | Build established: Mutant 315 | -10/Materials | Discovered new exit (range 9) 473 | -10/Materials | Discovered new exit (range 10) 853 | -10/Materials | Core integrity fell below 50% 867 | -10/Materials | Discovered new exit (range 4) 1028 | -10/Materials | Entered Mines 1124 | -10/Mines | Discovered new exit (range 9) 1203 | -10/Mines | Found a damaged Exp. Sensor Array with a note attached 1206 | -10/Mines | Found Prototype Device 1373 | -10/Mines | Discovered new exit (range 5) 1378 | -10/Mines | Identified Exp. Sensor Array 1383 | -10/Mines | Entered Subcaves 1384 | -10/Subcaves | Approached by a straggling Scientist 1418 | -10/Subcaves | Ambushed by Subdwellers from Twisted Machinery 1442 | -10/Subcaves | Core integrity fell below 20% 1498 | -10/Subcaves | Lost 5 parts (1p2n2w) 1596 | -10/Subcaves | Learned location of Zion (-6) 1596 | -10/Subcaves | Met a Zionite searching for "candidates" 1636 | -10/Subcaves | A swath of the cavern ceiling suddenly collapsed 1683 | -10/Subcaves | Visited 4L-MR0's lab 1731 | -10/Subcaves | Found Power Bank 1776 | -10/Subcaves | Shifting Twisted Machinery released Sub. Power Source 1777 | -10/Subcaves | Shifting Twisted Machinery released Shrapnel Trap 1797 | -10/Subcaves | Destroyed by S-10 Pest with Light Assault Rifle Last Messages --------------- Power Bank Rainbow Chip VL-GR5's Exoskeleton "Deathgrip" Powered Cannon 01691_ 4L-MR0 mumbles to no one in particular: "Damn Subs sneaking around stealing my stuff." 01699_ 4L-MR0 mumbles: "I'm surprised some of them are even willing to come in here given their fear of my usual visitors." 01712_ 4L-MR0 mumbles: "Who knows where that last prototype ended up, probably tossed aside somewhere as if it were useless junk..." 01727_ Testing Chamber breached. 01731_ Acquired Power Bank. 01732_ Dropped Particle Gun. Sub. Power Source falls loose from the Twisted Machinery. Shrapnel Trap falls loose from the Twisted Machinery. 01779_ HL-KD3(u) tweaks Twisted Machinery. 01784_ Acquired Sub. Power Source. 01785_ Dropped Sub. Power Source. 01786_ Dropped Seismic Detector. 01789_ Acquired Shrapnel Trap. Map ----- +----------------------------------------------------+ | ??????????????????????????# ##? | | ??????????????????????????# ## | | ??????????????????????????# ! | | ??????????????????????????## ## ### | | ???????????????????????????####?## ##?## | | ?????????????????????????????????#### #???### | | ????????????????????????????????????## ## #?????? | | ?????????????????????????????????????############# | | ????????????????????????????????????????##" "" # | | ???????????????? ? ?????????????????????# " "" " | | ??????????????# ????????????????????#"""" "" | | ??????????????? ????????????????????# """" " | | ???????????????# #???????????????????###" ##" | | ???????????????# #???????????????????###+##### | | ??????????????## ???????????????????#" "#?# | | ??????????????# ???????????????????#" "#?# | | ?????????????## ???????????????????# ""#?# | | ?????????????# ???????????????????# X"#?# | | ??????????????# ???????????????????# ""#?## | | ??????????????# ##?????????????????# #""#??? | | ??????????????# #?????????????????#[#""#??? | | ??????????????# ####??????????????######??? | | ?????????"? ss ##?????????????####????? | | ???????? ?##s "#?????????????? ##???? | | ?????????"? ???????# "#??????????????# #???? | | ?????????????????????# ""@"#?????????????## ##??? | | ?????????????????????## "" ####?????????## #??? | | ??????????????????????## "" #?????##### ##?? | | ???????????????#???????##*" ##??#### ## ##? | | ???????????????? ???????#!""###### ## | | ????????????????? ???#### #### """ | | ????????????????## ??#"## # ##### #### "" | | ????????????? ##""### #????## ##? ## # | | ???????????? ?""" " #?????# ## ## | | ????????????""" "" ##????# | | ???????????"" ## "# #### ##??## ## | | ????????????????#######??### # #### #### | | ???????????????????????????# # # ##??## | | ???????????????????????????# #????### | | ???????????????????????????## ## ####???????# | | ????????????????????????????###########??????????? | | ?????????????????????????????????????????????????? | | ?????????????????????????????????????????????????? | | ?????????????????????????????????????????????????? | | ?????????????????????????????????????????????????? | | ?????????????????????????????????????????????????? | | ?????????????????????????????????????????????????? | | ?????????????????????????????????????????????????? | | ?????????????????????????????????????????????????? | | ?????????????????????????????????????????????????? | +----------------------------------------------------+ Best States ------------- Heat Dissipation 25 Energy Generation 10 Energy Capacity 250 Matter Stores 300 Matter Capacity 300 Sight Range 16 Robot Scan Range 20 Terrain Scan Density 10 Evasion (%) 55 Recoil Reduction 2 Item Schematics ----------------- None Robot Schematics ------------------ None Fabricated ------------ Nothing Repaired ---------- Nothing Alien Tech Used ----------------- None Achievements -------------- None Challenges ------------ None Game ------ Seed CarbideActiveBox Manual? 0 Play Time 00:12:46 Cumulative 68.4 hours Start 2025.05.26 @ 12:49:14 End 2025.05.26 @ 13:01:28 Sessions 1 Manual Loads 0 Difficulty Rogue Special Mode None Game No. 129 Rogue 129 Adventurer 0 Explorer 0 Win Type - Total 1 Types 1/0/0/0/0/0/0/0/0/0 Lore% 55 Gallery% 44 Achievement% 41 Wizard Run 0 Options --------- Layout 0 ASCII 0 Keyboard 0 Movement Mouse Keybinds 0 Fullscreen 1 Font 16/SmallcapsGlow Map View 75x55 Zoom Use 0% Tactical HUD 1 Map Filters NONE Filters NONE Steam 1 RUN: e991d8c0-b67c-43c5-8493-eec4371c8fa0